[Event "Titled Tuesday Blitz July 11 Early 2023"]
[White "Vokhidov, Shamsiddin"]
[Black "Borrmann, Laurenz"]
[WhiteFideId "14204223"]
[BlackFideId "312187930"]
[WhiteElo "2925"]
[BlackElo "2575"]
[Result "1/2-1/2"]
[Round "4"]
[TimeControl "180+2"]
[Date "2023.07.11"]
[WhiteClock "0:01:23"]
[BlackClock "0:00:07"]
[Board "42"]

1. d4 {[%clk 0:03:00]}  Nf6 {[%clk 0:02:58]} 2. c4 {[%clk 0:03:01]}  e6 {[%clk 0:02:57]} 3. Nc3 {[%clk 0:03:02]}  Bb4 {[%clk 0:02:57]} 4. Qc2 {[%clk 0:03:02]}  O-O {[%clk 0:02:56]} 5. e4 {[%clk 0:03:03]}  d5 {[%clk 0:02:57]} 6. e5 {[%clk 0:03:03]}  Ne4 {[%clk 0:02:57]} 7. Bd3 {[%clk 0:03:03]}  c5 {[%clk 0:02:57]} 8. Ne2 {[%clk 0:03:04]}  cxd4 {[%clk 0:02:55]} 9. Nxd4 {[%clk 0:03:05]}  Nd7 {[%clk 0:02:55]} 10. Bf4 {[%clk 0:03:04]}  Qh4 {[%clk 0:02:56]} 11. g3 {[%clk 0:03:03]}  Qh5 {[%clk 0:02:56]} 12. O-O {[%clk 0:03:01]}  Bxc3 {[%clk 0:02:42]} 13. bxc3 {[%clk 0:03:00]}  g5 {[%clk 0:02:42]} 14. cxd5 {[%clk 0:02:58]}  exd5 {[%clk 0:02:37]} 15. Be3 {[%clk 0:02:55]}  Nxe5 {[%clk 0:02:33]} 16. f3 {[%clk 0:02:53]}  Nc5 {[%clk 0:02:30]} 17. Bf5 {[%clk 0:02:52]}  Ne6 {[%clk 0:02:31]} 18. g4 {[%clk 0:02:34]}  Qh6 {[%clk 0:02:29]} 19. Qd2 {[%clk 0:02:33]}  Nc4 {[%clk 0:02:21]} 20. Qf2 {[%clk 0:02:33]}  Nxe3 {[%clk 0:02:18]} 21. Qxe3 {[%clk 0:02:34]}  Nxd4 {[%clk 0:02:18]} 22. Qxd4 {[%clk 0:02:33]}  Bxf5 {[%clk 0:02:18]} 23. gxf5 {[%clk 0:02:34]}  Qd6 {[%clk 0:01:59]} 24. Rad1 {[%clk 0:02:30]}  Rfd8 {[%clk 0:01:57]} 25. c4 {[%clk 0:02:30]}  Qd7 {[%clk 0:01:45]} 26. f6 {[%clk 0:02:28]}  Qf5 {[%clk 0:01:38]} 27. Rfe1 {[%clk 0:02:19]}  Rd6 {[%clk 0:01:35]} 28. cxd5 {[%clk 0:02:13]}  Rad8 {[%clk 0:01:06]} 29. Qe5 {[%clk 0:02:09]}  Qxf6 {[%clk 0:01:00]} 30. Qxf6 {[%clk 0:02:04]}  Rxf6 {[%clk 0:01:01]} 31. Re7 {[%clk 0:02:05]}  b6 {[%clk 0:00:46]} 32. Rd3 {[%clk 0:01:55]}  Rfd6 {[%clk 0:00:42]} 33. Rxa7 {[%clk 0:01:53]}  Rxd5 {[%clk 0:00:41]} 34. Rxd5 {[%clk 0:01:51]}  Rxd5 {[%clk 0:00:42]} 35. Kg2 {[%clk 0:01:52]}  Ra5 {[%clk 0:00:35]} 36. Rb7 {[%clk 0:01:45]}  Rxa2+ {[%clk 0:00:35]} 37. Kg3 {[%clk 0:01:46]}  Rb2 {[%clk 0:00:36]} 38. Kg4 {[%clk 0:01:45]}  h6 {[%clk 0:00:34]} 39. h3 {[%clk 0:01:44]}  Kg7 {[%clk 0:00:34]} 40. Kg3 {[%clk 0:01:44]}  Kg6 {[%clk 0:00:33]} 41. h4 {[%clk 0:01:44]}  f5 {[%clk 0:00:30]} 42. hxg5 {[%clk 0:01:44]}  hxg5 {[%clk 0:00:31]} 43. Rb8 {[%clk 0:01:44]}  f4+ {[%clk 0:00:29]} 44. Kh3 {[%clk 0:01:43]}  b5 {[%clk 0:00:23]} 45. Rg8+ {[%clk 0:01:40]}  Kf6 {[%clk 0:00:23]} 46. Rf8+ {[%clk 0:01:41]}  Kg7 {[%clk 0:00:22]} 47. Rb8 {[%clk 0:01:41]}  b4 {[%clk 0:00:21]} 48. Kg4 {[%clk 0:01:40]}  Kf6 {[%clk 0:00:17]} 49. Rb6+ {[%clk 0:01:38]}  Ke5 {[%clk 0:00:17]} 50. Kxg5 {[%clk 0:01:35]}  Rg2+ {[%clk 0:00:11]} 51. Kh4 {[%clk 0:01:35]}  Kd4 {[%clk 0:00:11]} 52. Rxb4+ {[%clk 0:01:34]}  Ke3 {[%clk 0:00:11]} 53. Rb3+ {[%clk 0:01:32]}  Kf2 {[%clk 0:00:07]} 54. Ra3 {[%clk 0:01:31]}  Rg7 {[%clk 0:00:04]} 55. Rb3 {[%clk 0:01:29]}  Rg3 {[%clk 0:00:03]} 56. Rb2+ {[%clk 0:01:28]}  Kxf3 {[%clk 0:00:03]} 57. Rb4 {[%clk 0:01:29]}  Kf2 {[%clk 0:00:04]} 58. Rxf4+ {[%clk 0:01:28]}  Rf3 {[%clk 0:00:04]} 59. Ra4 {[%clk 0:01:29]}  Re3 {[%clk 0:00:04]} 60. Kg4 {[%clk 0:01:30]}  Ke2 {[%clk 0:00:05]} 61. Kf4 {[%clk 0:01:30]}  Re7 {[%clk 0:00:06]} 62. Ra2+ {[%clk 0:01:28]}  Kd3 {[%clk 0:00:05]} 63. Ra1 {[%clk 0:01:28]}  Kc2 {[%clk 0:00:06]} 64. Kf5 {[%clk 0:01:28]}  Rf7+ {[%clk 0:00:06]} 65. Ke5 {[%clk 0:01:27]}  Rb7 {[%clk 0:00:07]} 66. Kd4 {[%clk 0:01:23]}  Rb4+ {[%clk 0:00:07]} 1/2-1/2


[Site "https://www.chess.com"]

[Event "Titled Tuesday Blitz July 11 Early 2023"]
[White "Grandelius, Nils"]
[Black "Domingo Nunez, Alejandro"]
[WhiteFideId "1710400"]
[BlackFideId "22245561"]
[WhiteElo "2861"]
[BlackElo "2567"]
[Result "1-0"]
[Round "4"]
[TimeControl "180+2"]
[Date "2023.07.11"]
[WhiteClock "0:00:07"]
[BlackClock "0:00:02"]
[Board "45"]

1. c4 {[%clk 0:03:00]}  g6 {[%clk 0:02:53]} 2. e4 {[%clk 0:02:59]}  Bg7 {[%clk 0:02:54]} 3. d4 {[%clk 0:02:59]}  d6 {[%clk 0:02:54]} 4. Nc3 {[%clk 0:02:59]}  Nd7 {[%clk 0:02:51]} 5. h4 {[%clk 0:02:49]}  c5 {[%clk 0:02:49]} 6. d5 {[%clk 0:02:48]}  Ngf6 {[%clk 0:02:49]} 7. Be2 {[%clk 0:02:46]}  O-O {[%clk 0:02:49]} 8. h5 {[%clk 0:02:46]}  Ne5 {[%clk 0:02:34]} 9. Nf3 {[%clk 0:02:29]}  Nxf3+ {[%clk 0:02:15]} 10. Bxf3 {[%clk 0:02:30]}  e6 {[%clk 0:02:08]} 11. hxg6 {[%clk 0:02:27]}  fxg6 {[%clk 0:02:02]} 12. Bg5 {[%clk 0:02:19]}  Qe7 {[%clk 0:01:21]} 13. Qd2 {[%clk 0:02:08]}  Qf7 {[%clk 0:01:02]} 14. O-O-O {[%clk 0:02:01]}  exd5 {[%clk 0:01:02]} 15. cxd5 {[%clk 0:01:47]}  Nd7 {[%clk 0:00:45]} 16. Nb5 {[%clk 0:01:41]}  Ne5 {[%clk 0:00:42]} 17. Nxd6 {[%clk 0:01:24]}  Qd7 {[%clk 0:00:32]} 18. Nxc8 {[%clk 0:01:23]}  Raxc8 {[%clk 0:00:31]} 19. d6 {[%clk 0:01:21]}  c4 {[%clk 0:00:18]} 20. Qd5+ {[%clk 0:01:13]}  Rf7 {[%clk 0:00:19]} 21. Kb1 {[%clk 0:00:45]}  c3 {[%clk 0:00:19]} 22. bxc3 {[%clk 0:00:34]}  Rxc3 {[%clk 0:00:20]} 23. Rc1 {[%clk 0:00:29]}  Rd3 {[%clk 0:00:20]} 24. Qc5 {[%clk 0:00:23]}  Rxd6 {[%clk 0:00:20]} 25. Qc8+ {[%clk 0:00:22]}  Rf8 {[%clk 0:00:19]} 26. Qxd7 {[%clk 0:00:22]}  Nxd7 {[%clk 0:00:18]} 27. Bd1 {[%clk 0:00:17]}  Be5 {[%clk 0:00:07]} 28. Bb3+ {[%clk 0:00:16]}  Kh8 {[%clk 0:00:07]} 29. f3 {[%clk 0:00:09]}  a5 {[%clk 0:00:06]} 30. Rhd1 {[%clk 0:00:07]}  Rxd1 {[%clk 0:00:01]} 31. Rxd1 {[%clk 0:00:08]}  Nc5 {[%clk 0:00:02]} 32. Be7 {[%clk 0:00:07]}  Nxb3 {[%clk 0:00:01]} 33. Bxf8 {[%clk 0:00:07]}  Nd4 {[%clk 0:00:02]} 34. Bc5 {[%clk 0:00:06]}  Ne2 {[%clk 0:00:02]} 35. Kc2 {[%clk 0:00:05]}  Nf4 {[%clk 0:00:02]} 36. g3 {[%clk 0:00:05]}  Ne6 {[%clk 0:00:02]} 37. Bf2 {[%clk 0:00:05]}  Ng5 {[%clk 0:00:02]} 38. f4 {[%clk 0:00:06]}  Nxe4 {[%clk 0:00:02]} 39. fxe5 {[%clk 0:00:07]}  Nxf2 {[%clk 0:00:03]} 40. Rd7 {[%clk 0:00:06]}  Ng4 {[%clk 0:00:03]} 41. e6 {[%clk 0:00:06]}  Ne3+ {[%clk 0:00:03]} 42. Kd3 {[%clk 0:00:06]}  Nf5 {[%clk 0:00:02]} 43. e7 {[%clk 0:00:07]} 1-0


[Site "https://www.chess.com"]

[Event "Titled Tuesday Blitz July 11 Early 2023"]
[White "Aggelis, Nikolaos"]
[Black "Henriquez Villagra, Cristobal"]
[WhiteFideId "4213220"]
[BlackFideId "3409350"]
[WhiteElo "2567"]
[BlackElo "2856"]
[Result "0-1"]
[Round "4"]
[TimeControl "180+2"]
[Date "2023.07.11"]
[WhiteClock "0:00:20"]
[BlackClock "0:01:33"]
[Board "46"]

1. c4 {[%clk 0:03:00]}  d6 {[%clk 0:03:00]} 2. b3 {[%clk 0:02:56]}  e5 {[%clk 0:02:59]} 3. Bb2 {[%clk 0:02:56]}  Nd7 {[%clk 0:03:00]} 4. g3 {[%clk 0:02:57]}  f5 {[%clk 0:02:58]} 5. Bg2 {[%clk 0:02:57]}  Ngf6 {[%clk 0:02:59]} 6. e3 {[%clk 0:02:46]}  Be7 {[%clk 0:02:58]} 7. Ne2 {[%clk 0:02:47]}  O-O {[%clk 0:02:58]} 8. Nbc3 {[%clk 0:02:46]}  a6 {[%clk 0:02:52]} 9. O-O {[%clk 0:02:45]}  Rb8 {[%clk 0:02:53]} 10. a4 {[%clk 0:02:29]}  c6 {[%clk 0:02:53]} 11. d3 {[%clk 0:02:28]}  a5 {[%clk 0:02:52]} 12. Ba3 {[%clk 0:02:05]}  Re8 {[%clk 0:02:43]} 13. b4 {[%clk 0:02:05]}  axb4 {[%clk 0:02:28]} 14. Bxb4 {[%clk 0:02:06]}  Nc5 {[%clk 0:02:28]} 15. d4 {[%clk 0:01:52]}  Na6 {[%clk 0:02:19]} 16. Ba3 {[%clk 0:01:51]}  e4 {[%clk 0:02:19]} 17. Rb1 {[%clk 0:01:42]}  Bf8 {[%clk 0:02:19]} 18. Qb3 {[%clk 0:01:39]}  Be6 {[%clk 0:02:19]} 19. d5 {[%clk 0:01:40]}  Bf7 {[%clk 0:02:01]} 20. Nd4 {[%clk 0:01:38]}  g6 {[%clk 0:02:02]} 21. Rfd1 {[%clk 0:01:21]}  Nc5 {[%clk 0:01:57]} 22. Qb6 {[%clk 0:01:15]}  cxd5 {[%clk 0:01:51]} 23. cxd5 {[%clk 0:01:04]}  Nd3 {[%clk 0:01:51]} 24. Bf1 {[%clk 0:00:52]}  Rc8 {[%clk 0:01:43]} 25. Qxd8 {[%clk 0:00:33]}  Rexd8 {[%clk 0:01:42]} 26. Ncb5 {[%clk 0:00:34]}  Bxd5 {[%clk 0:01:37]} 27. Bxd3 {[%clk 0:00:31]}  exd3 {[%clk 0:01:38]} 28. Rxd3 {[%clk 0:00:31]}  Be4 {[%clk 0:01:38]} 29. Rbd1 {[%clk 0:00:32]}  Bxd3 {[%clk 0:01:39]} 30. Rxd3 {[%clk 0:00:33]}  Ne4 {[%clk 0:01:32]} 31. Ne6 {[%clk 0:00:33]}  Re8 {[%clk 0:01:32]} 32. Nxf8 {[%clk 0:00:30]}  Rxf8 {[%clk 0:01:33]} 33. Nxd6 {[%clk 0:00:30]}  Rfd8 {[%clk 0:01:30]} 34. Rd4 {[%clk 0:00:30]}  Nxd6 {[%clk 0:01:30]} 35. Bxd6 {[%clk 0:00:31]}  Rc6 {[%clk 0:01:30]} 36. Be5 {[%clk 0:00:29]}  Rxd4 {[%clk 0:01:31]} 37. Bxd4 {[%clk 0:00:30]}  Ra6 {[%clk 0:01:31]} 38. Kf1 {[%clk 0:00:27]}  Rxa4 {[%clk 0:01:32]} 39. h4 {[%clk 0:00:24]}  Kf7 {[%clk 0:01:32]} 40. Ke2 {[%clk 0:00:25]}  Ke6 {[%clk 0:01:32]} 41. Kd3 {[%clk 0:00:25]}  Kd5 {[%clk 0:01:33]} 42. Kc3 {[%clk 0:00:26]}  b5 {[%clk 0:01:32]} 43. Kb3 {[%clk 0:00:26]}  Rc4 {[%clk 0:01:32]} 44. Bc3 {[%clk 0:00:20]}  Ke4 {[%clk 0:01:33]} 0-1


[Site "https://www.chess.com"]

[Event "Titled Tuesday Blitz July 11 Early 2023"]
[White "Ambartsumova, Karina"]
[Black "Maksimovic, Bojan"]
[WhiteFideId "4166299"]
[BlackFideId "14408120"]
[WhiteElo "2562"]
[BlackElo "2836"]
[Result "1-0"]
[Round "4"]
[TimeControl "180+2"]
[Date "2023.07.11"]
[WhiteClock "0:00:17"]
[BlackClock "0:00:00"]
[Board "47"]

1. d4 {[%clk 0:03:00]}  f5 {[%clk 0:02:55]} 2. Nf3 {[%clk 0:02:59]}  Nf6 {[%clk 0:02:55]} 3. g3 {[%clk 0:03:00]}  d6 {[%clk 0:02:55]} 4. Bg2 {[%clk 0:03:01]}  g6 {[%clk 0:02:56]} 5. O-O {[%clk 0:03:01]}  Bg7 {[%clk 0:02:56]} 6. b3 {[%clk 0:03:02]}  O-O {[%clk 0:02:55]} 7. Bb2 {[%clk 0:03:02]}  a5 {[%clk 0:02:52]} 8. a4 {[%clk 0:03:02]}  c6 {[%clk 0:02:52]} 9. c4 {[%clk 0:02:59]}  Na6 {[%clk 0:02:52]} 10. Na3 {[%clk 0:02:56]}  h6 {[%clk 0:02:51]} 11. Nc2 {[%clk 0:02:52]}  g5 {[%clk 0:02:43]} 12. d5 {[%clk 0:02:47]}  c5 {[%clk 0:02:36]} 13. Re1 {[%clk 0:02:36]}  Qe8 {[%clk 0:02:22]} 14. Nd2 {[%clk 0:02:32]}  f4 {[%clk 0:02:17]} 15. e4 {[%clk 0:02:21]}  Nd7 {[%clk 0:02:15]} 16. Bxg7 {[%clk 0:02:11]}  Kxg7 {[%clk 0:02:16]} 17. e5 {[%clk 0:01:42]}  Nxe5 {[%clk 0:02:12]} 18. Nf3 {[%clk 0:01:42]}  Bg4 {[%clk 0:02:11]} 19. Rxe5 {[%clk 0:01:02]}  dxe5 {[%clk 0:02:08]} 20. Qe1 {[%clk 0:01:02]}  Qg6 {[%clk 0:01:59]} 21. Nxe5 {[%clk 0:00:57]}  Qxc2 {[%clk 0:01:44]} 22. Nxg4 {[%clk 0:00:57]}  Qb2 {[%clk 0:01:39]} 23. Rb1 {[%clk 0:00:50]}  Qd4 {[%clk 0:01:39]} 24. Rd1 {[%clk 0:00:50]}  Qb2 {[%clk 0:01:36]} 25. Rb1 {[%clk 0:00:42]}  Qd4 {[%clk 0:00:03]} 26. Qxe7+ {[%clk 0:00:16]}  Rf7 {[%clk 0:00:03]} 27. Qe6 {[%clk 0:00:17]}  Rh8 {[%clk 0:00:03]} 28. Ne5 {[%clk 0:00:16]}  Rf6 {[%clk 0:00:01]} 29. Qe7+ {[%clk 0:00:17]}  Kg8 {[%clk 0:00:00]} 30. Qxf6 {[%clk 0:00:17]} 1-0


[Site "https://www.chess.com"]

[Event "Titled Tuesday Blitz July 11 Early 2023"]
[White "Beerdsen, Thomas"]
[Black "Zubarev, Alexander"]
[WhiteFideId "1030108"]
[BlackFideId "14104385"]
[WhiteElo "2829"]
[BlackElo "2559"]
[Result "1-0"]
[Round "4"]
[TimeControl "180+2"]
[Date "2023.07.11"]
[WhiteClock "0:02:36"]
[BlackClock "0:00:00"]
[Board "48"]

1. e4 {[%clk 0:03:00]}  g6 {[%clk 0:02:55]} 2. d4 {[%clk 0:03:00]}  Nf6 {[%clk 0:02:55]} 3. Nf3 {[%clk 0:03:01]}  Nxe4 {[%clk 0:02:55]} 4. h4 {[%clk 0:03:02]}  h5 {[%clk 0:02:54]} 5. Bd3 {[%clk 0:03:03]}  d5 {[%clk 0:02:53]} 6. Nc3 {[%clk 0:03:03]}  Nf6 {[%clk 0:02:50]} 7. Bg5 {[%clk 0:03:03]}  Bg7 {[%clk 0:02:51]} 8. Qd2 {[%clk 0:03:03]}  Bf5 {[%clk 0:02:37]} 9. O-O-O {[%clk 0:03:03]}  Ne4 {[%clk 0:02:31]} 10. Bxe4 {[%clk 0:03:01]}  dxe4 {[%clk 0:02:28]} 11. Ng1 {[%clk 0:03:00]}  Nc6 {[%clk 0:02:22]} 12. Nge2 {[%clk 0:03:01]}  Qd7 {[%clk 0:02:16]} 13. Kb1 {[%clk 0:02:59]}  O-O-O {[%clk 0:02:14]} 14. d5 {[%clk 0:02:58]}  Ne5 {[%clk 0:02:11]} 15. Qd4 {[%clk 0:02:58]}  Kb8 {[%clk 0:01:46]} 16. Bf4 {[%clk 0:02:58]}  Qd6 {[%clk 0:00:31]} 17. Ng3 {[%clk 0:02:51]}  c5 {[%clk 0:00:23]} 18. Qa4 {[%clk 0:02:49]}  Qb6 {[%clk 0:00:14]} 19. Ngxe4 {[%clk 0:02:45]}  Ka8 {[%clk 0:00:14]} 20. Nd2 {[%clk 0:02:42]}  Qb4 {[%clk 0:00:04]} 21. Qxb4 {[%clk 0:02:42]}  cxb4 {[%clk 0:00:04]} 22. Nb5 {[%clk 0:02:43]}  Rd7 {[%clk 0:00:03]} 23. d6 {[%clk 0:02:42]}  exd6 {[%clk 0:00:02]} 24. Nb3 {[%clk 0:02:42]}  Rc8 {[%clk 0:00:02]} 25. N5d4 {[%clk 0:02:39]}  Nc4 {[%clk 0:00:02]} 26. f3 {[%clk 0:02:36]}  a6 {[%clk 0:00:00]} 27. Bc1 {[%clk 0:02:36]} 1-0


[Site "https://www.chess.com"]

[Event "Titled Tuesday Blitz July 11 Early 2023"]
[White "Kantor, Gergely"]
[Black "Horobetz, Graham"]
[WhiteFideId "751499"]
[BlackFideId "2047322"]
[WhiteElo "2806"]
[BlackElo "2553"]
[Result "0-1"]
[Round "4"]
[TimeControl "180+2"]
[Date "2023.07.11"]
[WhiteClock "0:00:00"]
[BlackClock "0:00:11"]
[Board "49"]

1. e4 {[%clk 0:03:00]}  c5 {[%clk 0:03:00]} 2. Nf3 {[%clk 0:03:00]}  d6 {[%clk 0:03:00]} 3. Bd3 {[%clk 0:02:59]}  Nc6 {[%clk 0:02:55]} 4. O-O {[%clk 0:02:59]}  e5 {[%clk 0:02:53]} 5. Bb5 {[%clk 0:02:47]}  Nf6 {[%clk 0:02:48]} 6. Re1 {[%clk 0:02:47]}  g5 {[%clk 0:02:40]} 7. d4 {[%clk 0:02:35]}  g4 {[%clk 0:02:30]} 8. d5 {[%clk 0:02:34]}  a6 {[%clk 0:02:19]} 9. Bxc6+ {[%clk 0:01:48]}  bxc6 {[%clk 0:02:17]} 10. Nfd2 {[%clk 0:01:49]}  cxd5 {[%clk 0:02:05]} 11. exd5 {[%clk 0:01:49]}  h5 {[%clk 0:01:42]} 12. Nc4 {[%clk 0:01:48]}  Be7 {[%clk 0:01:42]} 13. Nc3 {[%clk 0:01:33]}  Rg8 {[%clk 0:01:31]} 14. f4 {[%clk 0:01:03]}  gxf3 {[%clk 0:01:30]} 15. Qxf3 {[%clk 0:01:03]}  Rg4 {[%clk 0:01:19]} 16. Nxe5 {[%clk 0:00:34]}  dxe5 {[%clk 0:01:19]} 17. d6 {[%clk 0:00:35]}  Ra7 {[%clk 0:01:02]} 18. dxe7 {[%clk 0:00:32]}  Qxe7 {[%clk 0:00:58]} 19. h3 {[%clk 0:00:30]}  Bb7 {[%clk 0:00:56]} 20. Qe3 {[%clk 0:00:21]}  Rxg2+ {[%clk 0:00:53]} 21. Kf1 {[%clk 0:00:22]}  Rh2 {[%clk 0:00:40]} 22. Qxe5 {[%clk 0:00:19]}  Rh1+ {[%clk 0:00:39]} 23. Kf2 {[%clk 0:00:19]}  Rxe1 {[%clk 0:00:21]} 24. Qxe1 {[%clk 0:00:18]}  Qxe1+ {[%clk 0:00:20]} 25. Kxe1 {[%clk 0:00:18]}  Bg2 {[%clk 0:00:21]} 26. Bg5 {[%clk 0:00:17]}  Nh7 {[%clk 0:00:18]} 27. Be3 {[%clk 0:00:16]}  Re7 {[%clk 0:00:17]} 28. Kf2 {[%clk 0:00:16]}  Bxh3 {[%clk 0:00:17]} 29. Bxc5 {[%clk 0:00:17]}  Re5 {[%clk 0:00:15]} 30. Bd4 {[%clk 0:00:17]}  Rf5+ {[%clk 0:00:15]} 31. Kg3 {[%clk 0:00:17]}  Bg4 {[%clk 0:00:16]} 32. Re1+ {[%clk 0:00:17]}  Kd7 {[%clk 0:00:15]} 33. Re3 {[%clk 0:00:18]}  Ng5 {[%clk 0:00:15]} 34. Rd3 {[%clk 0:00:16]}  Kc6 {[%clk 0:00:14]} 35. a4 {[%clk 0:00:16]}  Ne6 {[%clk 0:00:13]} 36. Bg1 {[%clk 0:00:15]}  Nf4 {[%clk 0:00:13]} 37. Rd2 {[%clk 0:00:15]}  Ng6 {[%clk 0:00:12]} 38. Be3 {[%clk 0:00:15]}  Rf3+ {[%clk 0:00:11]} 39. Kg2 {[%clk 0:00:14]}  Rxe3 {[%clk 0:00:12]} 40. Nd1 {[%clk 0:00:14]}  Nh4+ {[%clk 0:00:12]} 41. Kf2 {[%clk 0:00:14]}  Rf3+ {[%clk 0:00:11]} 42. Kg1 {[%clk 0:00:14]}  Rh3 {[%clk 0:00:11]} 43. Rd4 {[%clk 0:00:00]}  Nf3+ {[%clk 0:00:11]} 0-1


[Site "https://www.chess.com"]

[Event "Titled Tuesday Blitz July 11 Early 2023"]
[White "Schmakel, Sam"]
[Black "Andreev, Konstantin"]
[WhiteFideId "2039311"]
[BlackFideId "24239305"]
[WhiteElo "2762"]
[BlackElo "2581"]
[Result "1-0"]
[Round "4"]
[TimeControl "180+2"]
[Date "2023.07.11"]
[WhiteClock "0:00:02"]
[BlackClock "0:00:00"]
[Board "55"]

1. Nf3 {[%clk 0:03:00]}  Nf6 {[%clk 0:02:57]} 2. g3 {[%clk 0:02:56]}  b5 {[%clk 0:02:56]} 3. Bg2 {[%clk 0:02:56]}  Bb7 {[%clk 0:02:56]} 4. O-O {[%clk 0:02:57]}  e6 {[%clk 0:02:56]} 5. b3 {[%clk 0:02:47]}  Be7 {[%clk 0:02:55]} 6. Bb2 {[%clk 0:02:45]}  c5 {[%clk 0:02:53]} 7. d4 {[%clk 0:02:36]}  O-O {[%clk 0:02:46]} 8. dxc5 {[%clk 0:02:28]}  Bxc5 {[%clk 0:02:41]} 9. Nbd2 {[%clk 0:02:28]}  d5 {[%clk 0:02:38]} 10. c4 {[%clk 0:02:27]}  bxc4 {[%clk 0:02:36]} 11. bxc4 {[%clk 0:02:28]}  Nbd7 {[%clk 0:02:33]} 12. Rc1 {[%clk 0:02:12]}  Rc8 {[%clk 0:02:24]} 13. cxd5 {[%clk 0:02:03]}  Bxd5 {[%clk 0:02:22]} 14. Nb3 {[%clk 0:01:52]}  Bb6 {[%clk 0:02:21]} 15. Qd3 {[%clk 0:01:46]}  Qe7 {[%clk 0:02:13]} 16. Qa6 {[%clk 0:01:29]}  Nc5 {[%clk 0:01:43]} 17. Nxc5 {[%clk 0:01:22]}  Bxc5 {[%clk 0:01:44]} 18. Bd4 {[%clk 0:01:17]}  Bb7 {[%clk 0:01:36]} 19. Bxc5 {[%clk 0:01:11]}  Rxc5 {[%clk 0:01:26]} 20. Qxa7 {[%clk 0:01:07]}  Rxc1 {[%clk 0:01:20]} 21. Rxc1 {[%clk 0:01:08]}  Ra8 {[%clk 0:01:19]} 22. Qb6 {[%clk 0:01:07]}  Nd5 {[%clk 0:01:02]} 23. Qb2 {[%clk 0:01:06]}  Kf8 {[%clk 0:00:49]} 24. Nd4 {[%clk 0:00:51]}  Qa3 {[%clk 0:00:45]} 25. Qxa3+ {[%clk 0:00:30]}  Rxa3 {[%clk 0:00:46]} 26. Rb1 {[%clk 0:00:30]}  Ba6 {[%clk 0:00:31]} 27. Rb8+ {[%clk 0:00:30]}  Ke7 {[%clk 0:00:31]} 28. Ra8 {[%clk 0:00:24]}  Nc7 {[%clk 0:00:18]} 29. Ra7 {[%clk 0:00:20]}  Kd6 {[%clk 0:00:19]} 30. Nc2 {[%clk 0:00:11]}  Rxa2 {[%clk 0:00:06]} 31. Nb4 {[%clk 0:00:10]}  Ra4 {[%clk 0:00:04]} 32. Nxa6 {[%clk 0:00:08]}  Rxa6 {[%clk 0:00:05]} 33. Rb7 {[%clk 0:00:07]}  Ra1+ {[%clk 0:00:04]} 34. Bf1 {[%clk 0:00:08]}  Kc6 {[%clk 0:00:04]} 35. Rb3 {[%clk 0:00:06]}  Nd5 {[%clk 0:00:04]} 36. e3 {[%clk 0:00:06]}  Kd6 {[%clk 0:00:04]} 37. Kg2 {[%clk 0:00:06]}  Ke5 {[%clk 0:00:04]} 38. Rb7 {[%clk 0:00:06]}  Kf6 {[%clk 0:00:05]} 39. Bc4 {[%clk 0:00:06]}  Ra5 {[%clk 0:00:03]} 40. h4 {[%clk 0:00:06]}  h6 {[%clk 0:00:02]} 41. Kf3 {[%clk 0:00:05]}  e5 {[%clk 0:00:03]} 42. Ke4 {[%clk 0:00:03]}  Nc3+ {[%clk 0:00:02]} 43. Kd3 {[%clk 0:00:03]}  Nd5 {[%clk 0:00:02]} 44. Rd7 {[%clk 0:00:02]}  Nb4+ {[%clk 0:00:00]} 45. Kc3 {[%clk 0:00:02]} 1-0


[Site "https://www.chess.com"]